Cogmind - Beta 13 @@@ ROGUE MODE // 2024.04.10 @ 18:37:42 Player: Conlarando Result: Self-destructed Performance ------------- Evolutions (1) 500 Regions Visited (2) 400 Robots Destroyed (35) 175 Value Destroyed (857) 857 Prototype IDs (0) 0 Alien Tech Used (0) 0 Bonus (0) 0 TOTAL SCORE: 1932 Bonus ------- None Cogmind --------- Core Integrity 119/400 Matter 195/300 Energy 100/100 System Corruption 0% Temperature Cool (2) Movement Core (50) Location -9/Materials Parts ------- > --- POWER (1) -------- (None) > --- PROPULSION (3) --- (None) > --- UTILITY (3) ------ Improved Targeting Computer Hacking Suite > --- WEAPON (2) ------- (None) > --- INVENTORY (5) ---- Light Nuclear Core Small Storage Unit Large Storage Unit Sensor Array Signal Interpreter Peak State ------------ > --- POWER ------------ Improved Ion Engine > --- PROPULSION ------- Light Treads Light Treads Light Treads > --- UTILITY ---------- Huge Storage Unit Improved Targeting Computer Hacking Suite > --- WEAPON ----------- Beam Rifle Beam Cannon > --- INVENTORY -------- Light Ion Engine Light Nuclear Core Light Treads Flight Unit VTOL Module Small Storage Unit Large Storage Unit Structural Scanner Sensor Array Signal Interpreter Signal Interpreter Light Armor Plating Particle Gun Grenade Launcher Mini Grenade Launcher [Rating: 16] Favorites ----------- Power Ion Engine Engine Ion Engine Power Core Light Nuclear Core Propulsion Light Treads Treads Light Treads Wheel Compact Wheel Flight Unit VTOL Module Utility Hacking Suite Storage Large Storage Unit Processor Improved Targeting Computer Hackware Hacking Suite Weapon Medium Laser Energy Gun Medium Laser Energy Cannon Beam Cannon Launcher Grenade Launcher Build | -11 -10 -9 ------- Run | Yrd Mat Mat Slots Evolved 2 | . . 2 Power . | . . . Propulsion 1 | . . 1 Utility 1 | . . 1 Weapon . | . . . Parts Attached 34 | 6 11 17 Power 6 | 1 3 2 Engine 5 | 1 2 2 Core 1 | . 1 . Reactor . | . . . Propulsion 13 | 2 3 8 Treads 10 | 2 2 6 Leg . | . . . Wheel 1 | . 1 . Hover . | . . . Flight 2 | . . 2 Utility 5 | 1 2 2 Device . | . . . Storage 3 | 1 1 1 Processor 1 | . . 1 Hackware 1 | . 1 . Protection . | . . . Artifact . | . . . Weapon 10 | 2 3 5 Energy Gun 6 | 2 1 3 Energy Cannon 1 | . 1 . Ballistic Gun . | . . . Ballistic Cannon . | . . . Launcher 3 | . 1 2 Special Weapon . | . . . Impact Weapon . | . . . Slashing Weapon . | . . . Piercing Weapon . | . . . Special Melee Weapon . | . . . Unidentified Prototypes . | . . . Parts Lost 16 | . 1 15 Power 2 | . . 2 Propulsion 10 | . 1 9 Utility . | . . . Weapon 4 | . . 4 Highest Loss Streak 12 | . 1 12 To Critical Strikes . | . . . Average Slot Usage (%) 84 | . 82 85 Engine 11 | . 14 10 Treads 22 | . 16 25 Storage 12 | . 14 10 Processor 3 | . . 6 Hackware 9 | . 6 11 Energy Gun 15 | . 24 10 Energy Cannon 7 | . 3 10 Naked Turns . | . . . Heaviest Build 93 | 14 30 93 Greatest Support 60 | 40 40 60 Greatest Overweight (x) 10 | . 4 10 Average Overweight (x) . | . . . Largest Inventory Capacity 25 | 8 15 25 Average Capacity 15 | 7 10 18 Most Carried 15 | 2 14 15 Average Carried 10 | . 7 13 Final Capacity 15 | 8 15 5 Final Carried 14 | 2 14 5 Class Distribution -------------------- 100% | Mutant Dominant Class ---------------- Mutant | -10/Materials Mutant | -9/Materials Resources | -11 -10 -9 ----------- Run | Yrd Mat Mat Matter Collected 565 | 235 160 170 Remotely . | . . . Salvage Created 1266 | . 458 808 Parts 49 | . 19 30 Haulers Intercepted 3 | . 1 2 Recyclers Shooed 3 | . 1 2 Parts Field Recycled . | . . . Retrieved Matter . | . . . Parts Self-Destructed . | . . . Prevented . | . . . Kills | -11 -10 -9 ------- Run | Yrd Mat Mat Combat Hostiles Destroyed 24 | . 8 16 Guns 9 | . 6 3 Cannons 7 | . . 7 AOE 6 | . 2 4 Classes Destroyed 8 | . 5 3 Hauler 3 | . 1 2 Recycler 5 | . 1 4 Operator 2 | . 1 1 Watcher 1 | . 1 . Swarmer 6 | . . 6 Grunt 15 | . 8 7 Duelist 1 | . . 1 Sentry 2 | . . 2 Best Kill Streak 8 | . 6 8 Combat Bots Only 4 | . 4 4 Max Kills in Single Turn 4 | . 1 4 Gunslinging . | . . . Exploded 2 | . 1 2 Melee . | . . . Uniques/NPCs Destroyed . | . . . Combat | -11 -10 -9 -------- Run | Yrd Mat Mat Hostile Shots Fired 220 | . 69 151 Missed 55 | . 17 38 Damage Taken 2355 | . 629 1726 Core 446 | . 165 281 Absorbed by Shields . | . . . Core Remaining (%) 67 | 100 34 . Volleys Fired 109 | . 40 69 Largest 2 | . 2 2 Hottest 116 | . 110 116 Shots Fired 196 | . 69 127 Gun 120 | . 61 59 Cannon 65 | . 5 60 Launcher 11 | . 3 8 Special . | . . . Kinetic . | . . . Thermal 185 | . 66 119 Explosive 11 | . 3 8 Electromagnetic . | . . . Robot Hit Streak 20 | . 9 20 Robot Miss Streak 3 | . 2 3 Penetration Max . | . . . Secondary Targets 1 | . 1 . Max Gunslinging Chain 1 | . 1 . Shots Hit Robots 136 | . 49 87 Core Hits 50 | . 23 27 Critical Kills . | . . . Critical Parts Destroyed . | . . . Critical Strikes 7 | . 4 3 Burn 7 | . 4 3 Melee Attacks . | . . . Impact . | . . . Slashing . | . . . Piercing . | . . . Sneak Attacks . | . . . Combat Hostiles . | . . . Follow-up Attacks . | . . . Damage Inflicted 2863 | . 777 2086 Guns 1142 | . 570 572 Cannons 820 | . 51 769 Explosions 894 | . 156 738 Melee . | . . . Ramming 7 | . . 7 Kinetic . | . . . Thermal 2283 | . 621 1662 Explosive 573 | . 156 417 Electromagnetic . | . . . Impact . | . . . Slashing . | . . . Piercing . | . . . Highest Corruption . | . . . Average Corruption . | . . . Corruption Purged . | . . . Corruption Blocked . | . . . Overload Shots . | . . . Overflow Damage 214 | . . 214 Projectiles 1 | . . 1 Explosions 213 | . . 213 Melee . | . . . Knockbacks . | . . . Impact . | . . . Kinetic . | . . . Secondary . | . . . Self-Inflicted Damage 326 | . . 326 Shots 8 | . . 8 Rammed 3 | . . 3 Targets Rammed 3 | . . 3 Kicked . | . . . Crushed . | . . . Highest Temperature 455 | . 286 455 Average Temperature 142 | . 99 166 Received Heat Transfer 657 | . 351 306 Effects 6 | . 1 5 Energy Bleed 2 | . . 2 Interference 1 | . 1 . Matter Decay 2 | . . 2 Short Circuit 1 | . . 1 Siege Activations . | . . . Robots Corrupted . | . . . Combat Hostiles . | . . . Parts Fried . | . . . Impact Corruptions . | . . . Robots Melted 3 | . . 3 Combat Hostiles 2 | . . 2 Parts Melted 9 | . 4 5 Heat Transferred 5689 | . 2109 3580 Parts Sabotaged . | . . . Parts Stolen . | . . . Parts Stripped . | . . . Power Chain Reactions . | . . . Alert | -11 -10 -9 ------- Run | Yrd Mat Mat Peak Influence 349 | . 242 349 Initial 33 | . . 33 Average 68 | . 101 54 Maximum Alert Level 1 | . 1 1 Low Security (%) 91 | 100 80 96 Level 1 8 | . 19 3 Level 2 . | . . . Level 3 . | . . . Level 4 . | . . . Level 5 . | . . . High Security . | . . . Max Security . | . . . Squads Dispatched 4 | . 2 2 Investigation 3 | . 1 2 Extermination . | . . . Reinforcement 1 | . 1 . Assault . | . . . Garrison . | . . . Intercept . | . . . Searches Triggered . | . . . Construction Impeded . | . . . Haulers Reinforced . | . . . Active Scanning Responses . | . . . Cargo Convoy Interrupts . | . . . Stealth | -11 -10 -9 --------- Run | Yrd Mat Mat Distress Signals 2 | . . 2 Communications Jammed . | . . . Distress Signals . | . . . Times Spotted 42 | . 12 30 Peak Tracking Total 7 | . 5 7 Tactical Retreats 4 | . 1 3 Traps | -11 -10 -9 ------- Run | Yrd Mat Mat Traps Triggered 1 | . 1 . Indirectly . | . . . Trap Hack Attempts . | . . . Triggered . | . . . Disarmed . | . . . Reprogrammed . | . . . Reused . | . . . Traps Extracted . | . . . Installed . | . . . Triggered . | . . . Machines | -11 -10 -9 ---------- Run | Yrd Mat Mat Machines Disabled 4 | . 1 3 Max in Single Turn 2 | . 1 2 Machines Repaired . | . . . Machines Dismantled . | . . . Machines Sabotaged . | . . . Overloaded Fab Kills . | . . . Hacking | -11 -10 -9 --------- Run | Yrd Mat Mat Machines Accessed 5 | . 1 4 Terminals 4 | . 1 3 Fabricators . | . . . Repair Stations . | . . . Recycling Units 1 | . . 1 Scanalyzers . | . . . Garrison Access . | . . . Total Hacks 15 | . 2 13 Successful 6 | . 2 4 Failed 9 | . . 9 Catastrophic 2 | . . 2 Database Lockouts . | . . . Manual . | . . . Terminals 12 | . 2 10 Fabricators . | . . . Repair Stations . | . . . Recycling Units 3 | . . 3 Scanalyzers . | . . . Garrison Access . | . . . Terminal Hacks 5 | . 2 3 Level Access Points 1 | . . 1 Branch Access Points 1 | . . 1 Dispatch Records 1 | . 1 . Hauler Manifests 1 | . 1 . Zone Layout 1 | . . 1 Fabricator Hacks . | . . . Repair Station Hacks . | . . . Recycling Unit Hacks 1 | . . 1 Retrieve Matter 1 | . . 1 Scanalyzer . | . . . Garrison Access Hacks . | . . . Unauthorized Hacks . | . . . Terminals . | . . . Fabricators . | . . . Repair Stations . | . . . Recycling Units . | . . . Scanalyzers . | . . . Garrison Access . | . . . Data Cores Recovered . | . . . Used . | . . . Hacking Detections 4 | . . 4 Full Trace Events 3 | . . 3 Feedback Events . | . . . Feedback Blocked . | . . . Robot Schematics Acquired . | . . . Robots Built . | . . . Authchips . | . . . Time . | . . . Total Robot Build Rating . | . . . Part Schematics Acquired . | . . . Parts Built . | . . . Authchips . | . . . Time . | . . . Total Part Build Rating . | . . . Parts Repaired . | . . . Time . | . . . Parts Recycled . | . . . Recycled Matter . | . . . Retrieved Matter . | . . . Retrieved Components . | . . . Parts Scanalyzed . | . . . Part Schematics Acquired . | . . . Parts Damaged . | . . . Bothacking | -11 -10 -9 ------------ Run | Yrd Mat Mat Used RIF Installer . | . . . Robots Hacked . | . . . Non-combat . | . . . Combat . | . . . Robot Hacks Applied . | . . . Relay Couplers Released . | . . . Fabnet Peak Effective % . | . . . Robots Rewired . | . . . Allies Hacked . | . . . Hacks Repelled . | . . . Allies | -11 -10 -9 -------- Run | Yrd Mat Mat Total Allies . | . . . Largest Group . | . . . Highest-Rated Group . | . . . Highest-Rated Ally . | . . . Total Orders . | . . . Ally Attacks . | . . . Total Damage . | . . . Kills . | . . . Allies Corrupted . | . . . Allies Melted . | . . . Intel | -11 -10 -9 ------- Run | Yrd Mat Mat Robot Analysis Total . | . . . Derelict Logs Recovered . | . . . Drone Launches . | . . . Drone Recoveries . | . . . Exploration | -11 -10 -9 ------------- Run | Yrd Mat Mat Turns Passed 2130 | 92 732 1306 Spaces Moved 917 | 54 307 556 Core 21 | 4 17 . Treads 869 | 50 269 550 Legs . | . . . Wheels 21 | . 21 . Hover . | . . . Flight 6 | . . 6 Fastest Speed 35 | 50 100 35 Average Speed 180 | 151 184 181 Slowest Speed 834 | 160 250 834 Overloaded Moves . | . . . Propulsion Burnouts . | . . . Robots Hopped . | . . . Cave-ins Triggered . | . . . Exploration Rate (%) 26 | 3 35 40 Regions Visited 2 Branch Regions . Pre-discovered Areas . | . . . Known Exits Taken . | . . . Unknown Exits Taken 2 | 1 1 . Scrap Searched . | . . . Spaces Dug . | . . . Terrain Destroyed 83 | . 17 66 Melee . | . . . Projectile . | . . . AOE 83 | . 17 66 Terrain Rammed . | . . . Walls Destroyed . | . . . Machines Disabled . | . . . Actions | -11 -10 -9 --------- Run | Yrd Mat Mat Total 1187 | 61 403 723 Wait 96 | . 28 68 Move 915 | 53 306 556 Hop . | . . . Pick Up 19 | 2 12 5 Fast Attach 15 | 6 4 5 Attach 12 | . 2 10 Detach 1 | . 1 . Swap 7 | . 5 2 Drop 10 | . 5 5 Fire 109 | . 40 69 Melee . | . . . Ram . | . . . Kick . | . . . Crush 3 | . . 3 Escape Stasis . | . . . Rewire . | . . . Trap . | . . . Miscellaneous . | . . . Route ------- -11/Scrapyard -10/Materials (discovered 2 exits: *Mat / [*Min]) -9/Materials (discovered 4 exits: *Mat x3 / *Min) History --------- Turn | Location | Event 13 | -11/Scrapyard | Discovered new exit (range 16) 93 | -11/Scrapyard | Entered Materials 328 | -10/Materials | Build established: Mutant 372 | -10/Materials | Core integrity fell below 50% 375 | -10/Materials | Discovered new exit (range 14) 671 | -10/Materials | Discovered new exit (range 7) 825 | -10/Materials | Entered another Materials area 825 | -9/Materials | Evolved 2 slots: Propulsion x1, Utility x1 1787 | -9/Materials | Discovered new exit (range 8) 1988 | -9/Materials | Identified exit to Materials 1988 | -9/Materials | Identified exit to Mines 2110 | -9/Materials | Core integrity fell below 50% 2131 | -9/Materials | Self-destructed Last Messages --------------- 02118_ U-05 Engineer builds a Wall. 02118_ K-01 Serf collects debris. 02120_ The unstable cave ceiling collapses. 02120_ K-01 Serf collects debris. 02123_ Grenade Launcher destroyed. 02123_ Destroyed Grenade Launcher. 02123_ Flight Unit destroyed. 02123_ Destroyed Flight Unit. 02124_ K-01 Serf collects debris. 02124_ Critical hit (Burn: +37). 02125_ U-05 Engineer builds a Wall. 02125_ Dropped Huge Storage Unit. 02126_ K-01 Serf collects debris. 02127_ Extracted 10 energy. 02127_ Acquired Lgt. Treads. 02127_ VTOL Module destroyed. 02128_ The unstable cave ceiling collapses. 02128_ Lgt. Treads crushed. 02128_ K-01 Serf collects debris. 02130_ Lgt. Treads destroyed. Map ----- +----------------------------------------------------+ | #??# """"" #???# ### ##### #???? | | #??# """"" #???# #?# ##???# #???? | | #??# """"" #???# #?#+######+##??? | | " """ #??# #???# #?# #??? | | " """ #??# """"" #???# #?# "" #??? | | " """ #??# """"" #???# #?# """ ""S #??? | | ????????"""???????###########?# """ "" #??? | | ## ######?????? ???????????????????# """ #??? | | ??## ?######+###????????????????# """ #??? | | #### [ # #??########??????# """ #??? | | # # #? #??????# #??? | | "" # + #? #???########+#####??? | | "" # "Y" # """ # #??? ????????????? | | "" # """ # """ # [ +??? ????????????? | | "" # ?# """ + #??? ????????????? | | ######?# # #??? #????????????? | | ######????# + = #??? #????????????? | | """""#????# ### #??# #????????????? | | |"! "#???## #???#########??# #####????????? | | "##### #??????????????# #????????? | | #???????????### < #????????? | | > ]]]####???????## #????????? | | !]%]= #??###### #######+???? | | ##### ]#### #### ? | | ######???#######??#+# [## Y ???? | | ?????????????????##% [%*k@! !%! ! * """ "??????? | | ?????????????????# ! k !!] """ "??????? | | ?????????????????## " !*#u """ ???????? | | ??????????????????# " # # ?????? | | ??????????????????# " k # #???+####????? | | ??????????????????# # %#????????????? | | ??????????????????####;; ;# % #????????????? | | ?????????????????????#;; ## #????????????? | | ???????????????????? #????????????? | | ??????????????????? % #????????????? | | ?????????????????? ????????????? | | ?????????????????############+###+###????????????? | | ????????????????????????????????? ???????????????? | | ????????????????????????????????? ???????????????? | | ????????????????????????????????? ???????????????? | | ????????????????????????????????? ???????????????? | | ?????????????????????????????????????????????????? | | ?????????????????????????????????????????????????? | | ?????????????????????????????????????????????????? | | ?????????????????????????????????????????????????? | | ?????????????????????????????????????????????????? | | ?????????????????????????????????????????????????? | | ?????????????????????????????????????????????????? | | ?????????????????????????????????????????????????? | | ?????????????????????????????????????????????????? | +----------------------------------------------------+ Best States ------------- Heat Dissipation 28 Energy Generation 12 Energy Capacity 265 Matter Stores 300 Matter Capacity 300 Sight Range 16 Terrain Scan Density 10 Evasion (%) 40 Targeting Accuracy 6 Recoil Reduction 3 Offensive Hacking 10 Item Schematics ----------------- None Robot Schematics ------------------ None Fabricated ------------ Nothing Alien Tech Used ----------------- None Achievements -------------- It's Just You Loot Pinata Shopping List Challenges ------------ None Game ------ Seed BombardmentRocketActivator Manual? 0 Play Time 00:17:58 Cumulative 1.6 hours Start 2024.04.10 @ 18:19:19 End 2024.04.10 @ 18:37:42 Sessions 1 Manual Loads 0 Difficulty Rogue Special Mode None Game No. 5 Rogue 5 Adventurer 0 Explorer 0 Win Type - Total 0 Types 0/0/0/0/0/0/0/0/0 Lore% 4 Gallery% 4 Achievement% 5 Wizard Run 0 Options --------- Layout 1 ASCII 0 Keyboard 0 Movement Mouse Keybinds 0 Fullscreen 1 Font 24/Terminus Map View 50x35 Zoom Use 0% Tactical HUD 1 Map Filters NONE Filters NONE Steam 1 RUN: 55f16809-589a-4a13-ad87-0773182c8515